fUSD/lending_fUSD_20260526
["ID","MTS","AMOUNT","RATE_DAILY","PERIOD"]
[422993410,1779724875000,158.14,6.418e-05,2]
[422993415,1779725340000,1000.0,0.0002808,120]
[422993426,1779725431000,-150.0,0.00012688,2]
[422993423,1779725431000,-150.0,0.00012563,2]
[422993424,1779725431000,-189.21530246,0.00012588,2]
[422993425,1779725431000,-500.0,0.00012656,2]
[422993422,1779725431000,-250.0,0.000125,2]
[422993428,1779725431000,-775.75637362,0.0001272,2]
[422993420,1779725431000,-161.82,0.00012425,2]
[422993421,1779725431000,-520.32,0.00012436,2]
[422993427,1779725431000,-362.85974854,0.0001272,2]
[422993419,1779725431000,-477.85,0.00012424,2]
[422993431,1779725432000,-705.59,0.00012836,2]
[422993432,1779725432000,-370.43479954,0.00012836,2]
[422993429,1779725432000,-456.28387784,0.0001272,2]
[422993430,1779725432000,-150.0,0.00012812,2]
[422993436,1779725437000,-596.79223375,0.00012836,2]
[422993437,1779725437000,-3575.51044018,0.00012836,2]
[422993444,1779725440000,-2028.76968069,0.00012836,2]
[422993469,1779725443000,-500.0,0.00013155,2]
[422993468,1779725443000,-235.4369183,0.00013155,2]
[422993467,1779725443000,-316.220239,0.00013155,2]
[422993466,1779725443000,-52.21610324,0.00013155,2]
[422993464,1779725443000,-3121.60053612,0.00013112,2]
[422993465,1779725443000,-610.15584215,0.00013112,2]
[422993462,1779725443000,-608.57949976,0.00013075,2]
[422993456,1779725443000,-344.0,0.00012836,2]
[422993460,1779725443000,-150.0,0.00012937,2]
[422993461,1779725443000,-210.0,0.00013061,2]
[422993459,1779725443000,-158.14,0.00012836,2]
[422993458,1779725443000,-408.03687851,0.00012836,2]
[422993457,1779725443000,-941.94160441,0.00012836,2]
[422993452,1779725443000,-727.0,0.00012836,2]
[422993455,1779725443000,-1007.50436292,0.00012836,2]
[422993463,1779725443000,-1323.24362173,0.00013112,2]
[422993471,1779725443000,-207.2394901,0.00013155,2]
[422993470,1779725443000,-322.51744556,0.00013155,2]
[422993472,1779725443000,-292.7605099,0.00013155,2]
[422993485,1779725443000,-500.0,0.00013155,2]
[422993479,1779725443000,-500.0,0.00013155,2]
[422993487,1779725443000,-500.0,0.00013155,2]
[422993481,1779725443000,-500.0,0.00013155,2]
[422993483,1779725443000,-500.0,0.00013155,2]
[422993486,1779725443000,-500.0,0.00013155,2]
[422993488,1779725443000,-500.0,0.00013155,2]
[422993489,1779725443000,-513.28827161,0.00013155,2]
[422993484,1779725443000,-500.0,0.00013155,2]
[422993482,1779725443000,-500.0,0.00013155,2]
[422993476,1779725443000,-500.0,0.00013155,2]
[422993475,1779725443000,-500.0,0.00013155,2]
[422993477,1779725443000,-500.0,0.00013155,2]
[422993474,1779725443000,-500.0,0.00013155,2]
[422993480,1779725443000,-500.0,0.00013155,2]
[422993473,1779725443000,-500.0,0.00013155,2]
[422993478,1779725443000,-500.0,0.00013155,2]
[422993490,1779725443000,-473.92825306,0.00013155,2]
[422993494,1779725446000,-500.0,0.00013155,2]
[422993493,1779725446000,-26.07174694,0.00013155,2]
[422993495,1779725446000,-249.00017449,0.00013155,2]
[422993498,1779725446000,-500.0,0.00013155,2]
[422993499,1779725446000,-300.0,0.00013155,2]
[422993500,1779725446000,-300.0,0.00013155,2]
[422993497,1779725446000,-500.0,0.00013155,2]
[422993501,1779725446000,-1200.0,0.00013155,2]
[422993502,1779725446000,-2500.0,0.00013156,2]
[422993503,1779725446000,-16531.9004988,0.00013156,2]
[422993504,1779725446000,-2267.20397564,0.00013156,2]
[422993496,1779725446000,-250.99982551,0.00013155,2]
[422993516,1779725810000,165.07,6.593e-05,2]
[422993517,1779726117000,-1200.0,0.00010299,2]
[422993519,1779726117000,-200.0,0.00010299,2]
[422993520,1779726117000,-15563.0,0.000103,2]
[422993518,1779726117000,-300.0,0.00010299,2]
[422993522,1779726284000,-152.0,0.000103,2]
[422993521,1779726284000,-391.31597884,0.000103,2]
[422993523,1779726285000,-230.55470529,0.000103,2]
[422993527,1779726402000,-140.63043783,0.00010402,2]
[422993526,1779726402000,-207.98930263,0.0001035,2]
[422993528,1779726522000,200.0,0.00010167,2]
[422993529,1779726540000,1000.0,0.00028079,120]
[422993571,1779726632000,-420.0,0.00011652,2]
[422993578,1779726632000,-1275.92,0.00012521,2]
[422993569,1779726632000,-255.0,0.00011627,2]
[422993567,1779726632000,-250.0,0.0001155,2]
[422993575,1779726632000,-177.58,0.00012241,2]
[422993576,1779726632000,-500.0,0.00012447,2]
[422993573,1779726632000,-405.71966649,0.0001168,2]
[422993577,1779726632000,-311.43139196,0.000125,2]
[422993579,1779726632000,-354.0,0.0001274,2]
[422993565,1779726632000,-2861.4310865,0.000114,2]
[422993574,1779726632000,-260.16,0.00012162,2]
[422993580,1779726632000,-433.0,0.00012751,2]
[422993590,1779726632000,-2000.0,0.00013056,2]
[422993581,1779726632000,-587.0,0.00012809,2]
[422993591,1779726632000,-5000.0,0.00013056,2]
[422993572,1779726632000,-1680.0,0.00011659,2]
[422993587,1779726632000,-511.16210258,0.00012956,2]
[422993589,1779726632000,-249.99667,0.00012956,2]
[422993582,1779726632000,-2351.0,0.00012825,2]
[422993588,1779726632000,-241.74741534,0.00012956,2]
[422993583,1779726632000,-903.13643346,0.00012856,2]
[422993585,1779726632000,-32428.9137,0.00012956,2]
[422993584,1779726632000,-405.71966649,0.00012856,2]
[422993593,1779726632000,-903.13643337,0.00013083,2]
[422993586,1779726632000,-2500.0,0.00012956,2]
[422993563,1779726632000,-150.0,0.00011352,2]
[422993556,1779726632000,-185.18,0.00011114,2]
[422993558,1779726632000,-150.0,0.00011129,2]
[422993534,1779726632000,-405.7196665,0.00010504,2]
[422993533,1779726632000,-217.8,0.000105,2]
[422993535,1779726632000,-51.8323335,0.00010599,2]
[422993543,1779726632000,-500.0,0.00010599,2]
[422993545,1779726632000,-579.34432143,0.00010599,2]
[422993546,1779726632000,-1245003.317,0.000106,2]
[422993537,1779726632000,-51.53914763,0.00010599,2]
[422993536,1779726632000,-248.1676665,0.00010599,2]
[422993547,1779726632000,-271.41111859,0.000107,2]
[422993542,1779726632000,-500.0,0.00010599,2]
[422993540,1779726632000,-163.0369675,0.00010599,2]
[422993559,1779726632000,-150.0,0.00011235,2]
[422993538,1779726632000,-1148.46085237,0.00010599,2]
[422993539,1779726632000,-150.0,0.00010599,2]
[422993550,1779726632000,-208.87966228,0.00010711,2]
[422993548,1779726632000,-129767.19636555,0.000107,2]
[422993552,1779726632000,-150.0,0.00010917,2]
[422993551,1779726632000,-150.0,0.00010811,2]
[422993557,1779726632000,-177.58,0.00011128,2]
[422993555,1779726632000,-150.0,0.00011023,2]
[422993549,1779726632000,-150.0,0.00010705,2]
[422993554,1779726632000,-588.51010335,0.00011,2]
[422993604,1779726632000,-151.0,0.00013253,2]
[422993561,1779726632000,-247.0,0.00011341,2]
[422993541,1779726632000,-237.49946888,0.00010599,2]
[422993603,1779726632000,-511.16210257,0.00013234,2]
[422993544,1779726632000,-292.42960516,0.00010599,2]
[422993606,1779726632000,-500.0,0.00013356,2]
[422993621,1779726632000,-500.0,0.00013698,2]
[422993623,1779726632000,-500.0,0.00013698,2]
[422993626,1779726632000,-500.0,0.00013698,2]
[422993624,1779726632000,-500.0,0.00013698,2]
[422993632,1779726632000,-554.66,0.00013698,2]
[422993633,1779726632000,-554.66,0.00013698,2]
[422993635,1779726632000,-554.66,0.00013698,2]
[422993634,1779726632000,-554.66,0.00013698,2]
[422993644,1779726632000,-500.0,0.00013698,2]
[422993639,1779726632000,-511.17165135,0.00013698,2]
[422993643,1779726632000,-500.0,0.00013698,2]
[422993622,1779726632000,-500.0,0.00013698,2]
[422993636,1779726632000,-554.66,0.00013698,2]
[422993642,1779726632000,-500.0,0.00013698,2]
[422993638,1779726632000,-554.66,0.00013698,2]
[422993641,1779726632000,-500.0,0.00013698,2]
[422993646,1779726632000,-500.0,0.00013698,2]
[422993645,1779726632000,-442.2484019,0.00013698,2]
[422993651,1779726632000,-500.0,0.00013698,2]
[422993647,1779726632000,-500.0,0.00013698,2]
[422993649,1779726632000,-500.0,0.00013698,2]
[422993648,1779726632000,-500.0,0.00013698,2]
[422993650,1779726632000,-500.0,0.00013698,2]
[422993605,1779726632000,-903.13643337,0.0001331,2]
[422993640,1779726632000,-500.0,0.00013698,2]
[422993625,1779726632000,-500.0,0.00013698,2]
[422993637,1779726632000,-554.66,0.00013698,2]
[422993631,1779726632000,-554.66,0.00013698,2]
[422993594,1779726632000,-1511.2018036,0.00013111,2]
[422993620,1779726632000,-500.0,0.00013698,2]
[422993600,1779726632000,-1176.94101003,0.00013155,3]
[422993598,1779726632000,-151.0,0.00013153,2]
[422993597,1779726632000,-151.0,0.00013153,2]
[422993601,1779726632000,-150.0,0.00013155,2]
[422993599,1779726632000,-331.41638707,0.00013155,2]
[422993602,1779726632000,-249.99667,0.00013172,2]
[422993607,1779726632000,-500.0,0.00013356,2]
[422993611,1779726632000,-215.38528485,0.0001346,2]
[422993612,1779726632000,-511.16210257,0.00013511,2]
[422993610,1779726632000,-1589.0,0.000134,2]
[422993608,1779726632000,-1000.0,0.00013356,2]
[422993596,1779726632000,-2057.4506704,0.00013111,2]
[422993613,1779726632000,-903.13643337,0.00013537,2]
[422993615,1779726632000,-325.0,0.00013598,5]
[422993616,1779726632000,-249.99667,0.00013604,2]
[422993614,1779726632000,-1113.19385396,0.00013597,3]
[422993618,1779726632000,-500.0,0.00013698,2]
[422993617,1779726632000,-500.0,0.00013698,2]
[422993627,1779726632000,-500.0,0.00013698,2]
[422993628,1779726632000,-500.0,0.00013698,2]
[422993629,1779726632000,-500.0,0.00013698,2]
[422993619,1779726632000,-500.0,0.00013698,2]
[422993630,1779726632000,-500.0,0.00013698,2]
[422993609,1779726632000,-249.99667,0.00013388,2]
[422993687,1779726633000,-166.66,0.00014247,2]
[422993689,1779726633000,-249.99667,0.00014252,2]
[422993686,1779726633000,-903.13643337,0.00014219,2]
[422993685,1779726633000,-500.0,0.00014137,2]
[422993692,1779726633000,-266.0,0.00014285,5]
[422993683,1779726633000,-478.7692772,0.0001413,2]
[422993681,1779726633000,-3292.0,0.00014107,2]
[422993688,1779726633000,-11338.223452,0.0001425,2]
[422993682,1779726633000,-166.66,0.0001411,2]
[422993684,1779726633000,-478.7,0.0001413,2]
[422993690,1779726633000,-220.185793,0.00014277,2]
[422993701,1779726633000,-3636.0,0.00014443,2]
[422993693,1779726633000,-266.0,0.00014285,5]
[422993694,1779726633000,-511.16210257,0.00014345,2]
[422993703,1779726633000,-903.13643337,0.00014446,2]
[422993704,1779726633000,-249.99667,0.00014468,2]
[422993702,1779726633000,-626.0,0.00014443,2]
[422993696,1779726633000,-700.0,0.00014377,2]
[422993695,1779726633000,-1589.0,0.0001436,2]
[422993698,1779726633000,-519.0,0.00014443,2]
[422993697,1779726633000,-166.66,0.00014384,2]
[422993699,1779726633000,-1271.0,0.00014443,2]
[422993680,1779726633000,-1275.92,0.00014086,2]
[422993691,1779726633000,-150.0,0.00014284,2]
[422993677,1779726633000,-163.0,0.0001404,2]
[422993657,1779726633000,-500.0,0.00013698,2]
[422993674,1779726633000,-711.0,0.0001404,2]
[422993705,1779726633000,-507.03920233,0.0001447,2]
[422993656,1779726633000,-500.0,0.00013698,2]
[422993652,1779726633000,-264.34442925,0.00013698,2]
[422993655,1779726633000,-500.0,0.00013698,2]
[422993654,1779726633000,-500.0,0.00013698,2]
[422993653,1779726633000,-500.0,0.00013698,2]
[422993658,1779726633000,-500.0,0.00013698,2]
[422993659,1779726633000,-200.0,0.00013699,2]
[422993660,1779726633000,-166.66,0.00013699,2]
[422993666,1779726633000,-249.99667,0.0001382,2]
[422993661,1779726633000,-163.0,0.0001372,2]
[422993662,1779726633000,-163.0,0.0001372,2]
[422993669,1779726633000,-687.0,0.00013991,2]
[422993668,1779726633000,-166.66,0.00013973,2]
[422993667,1779726633000,-166.66,0.00013836,2]
[422993665,1779726633000,-511.16210257,0.00013789,2]
[422993663,1779726633000,-163.0,0.0001372,2]
[422993664,1779726633000,-903.13643337,0.00013764,2]
[422993671,1779726633000,-250.0,0.00014,2]
[422993670,1779726633000,-903.13643337,0.00013992,2]
[422993672,1779726633000,-409.79176311,0.00014,2]
[422993676,1779726633000,-2316.0,0.0001404,2]
[422993675,1779726633000,-163.0,0.0001404,2]
[422993673,1779726633000,-249.99667,0.00014036,2]
[422993679,1779726633000,-823.0,0.00014082,2]
[422993678,1779726633000,-511.16210257,0.00014067,2]
[422993707,1779726633000,-1216.21,0.00014497,2]
[422993700,1779726633000,-1224.0,0.00014443,2]
[422993708,1779726633000,-500.0,0.00014521,2]
[422993738,1779726633000,-478.71,0.00014897,2]
[422993740,1779726633000,-511.16210257,0.000149,2]
[422993739,1779726633000,-8000.0,0.000149,2]
[422993742,1779726633000,-903.13643337,0.000149,2]
[422993745,1779726633000,-150.0,0.00014924,2]
[422993743,1779726633000,-164.29813333,0.000149,2]
[422993744,1779726633000,-1004.96835694,0.000149,2]
[422993747,1779726633000,-160.98398656,0.00014974,2]
[422993757,1779726633000,-554.66,0.00014999,2]
[422993750,1779726633000,-151.0,0.00014997,2]
[422993751,1779726633000,-554.66,0.00014999,2]
[422993748,1779726633000,-478.71,0.0001498,2]
[422993753,1779726633000,-554.66,0.00014999,2]
[422993754,1779726633000,-554.66,0.00014999,2]
[422993746,1779726633000,-490.18087073,0.00014974,2]
[422993749,1779726633000,-1589.0,0.00014983,2]
[422993752,1779726633000,-554.66,0.00014999,2]
[422993756,1779726633000,-554.66,0.00014999,2]
[422993755,1779726633000,-554.66,0.00014999,2]
[422993758,1779726633000,-554.66,0.00014999,2]
[422993761,1779726633000,-554.66,0.00014999,2]
[422993759,1779726633000,-554.66,0.00014999,2]
[422993760,1779726633000,-554.66,0.00014999,2]
[422993762,1779726633000,-554.66,0.00014999,2]
[422993709,1779726633000,-478.7,0.00014569,2]
[422993741,1779726633000,-249.99667,0.000149,2]
[422993736,1779726633000,-31794.9878728,0.00014872,2]
[422993737,1779726633000,-200.0,0.0001488,2]
[422993731,1779726633000,-786.91583,0.0001485,2]
[422993714,1779726633000,-2304.41,0.00014677,2]
[422993706,1779726633000,-482.7,0.0001447,2]
[422993716,1779726633000,-2316.0,0.0001468,2]
[422993715,1779726633000,-166.348,0.00014677,2]
[422993710,1779726633000,-478.7,0.00014569,2]
[422993713,1779726633000,-903.13643337,0.00014673,2]
[422993712,1779726633000,-511.16210257,0.00014622,2]
[422993711,1779726633000,-283.833248,0.00014575,2]
[422993718,1779726633000,-2316.0,0.0001468,2]
[422993717,1779726633000,-163.0,0.0001468,2]
[422993735,1779726633000,-5002.1299868,0.00014872,2]
[422993720,1779726633000,-163.0,0.0001468,2]
[422993721,1779726633000,-249.99667,0.00014684,2]
[422993719,1779726633000,-2316.0,0.0001468,2]
[422993723,1779726633000,-500.0,0.00014726,2]
[422993726,1779726633000,-478.7,0.00014818,2]
[422993730,1779726633000,-786.91584,0.0001485,2]
[422993722,1779726633000,-526.64817153,0.000147,2]
[422993728,1779726633000,-478.71,0.00014828,2]
[422993727,1779726633000,-478.7,0.00014819,2]
[422993729,1779726633000,-478.7,0.00014828,2]
[422993733,1779726633000,-554.66,0.00014871,2]
[422993732,1779726633000,-786.91584,0.0001485,2]
[422993734,1779726633000,-1050.7855156,0.00014872,2]
[422993724,1779726633000,-1000.0,0.00014726,2]
[422993725,1779726633000,-478.71,0.00014745,2]
[422993768,1779726634000,-620956.01318606,0.00015,2]
[422993767,1779726634000,-150.0,0.00014999,2]
[422993766,1779726634000,-219.53407674,0.00014999,2]
[422993765,1779726634000,-554.81566396,0.00014999,2]
[422993764,1779726634000,-554.66,0.00014999,2]
[422993763,1779726634000,-554.66,0.00014999,2]
[422993773,1779726634000,-2386.648,0.00015,2]
[422993772,1779726634000,-1254.41808677,0.00015,2]
[422993775,1779726634000,-448.69411331,0.00015,2]
[422993770,1779726634000,-253869.77488476,0.00015,2]
[422993769,1779726634000,-192447.41207899,0.00015,2]
[422993771,1779726634000,-355908.87158341,0.00015,2]
[422993774,1779726634000,-731.08307383,0.00015,2]
[422994700,1779726646000,-1.39094066,0.00010599,2]
[422995515,1779727740000,1000.0,0.00028078,120]
[422995531,1779727832000,-150.0,0.00013488,2]
[422995547,1779727832000,-166.66,0.00013836,2]
[422995542,1779727832000,-500.0,0.00013698,2]
[422995548,1779727832000,-990.09,0.00013849,2]
[422995549,1779727832000,-166.66,0.00013973,2]
[422995550,1779727832000,-500.0,0.00014,2]
[422995551,1779727832000,-500.0,0.00014,2]
[422995552,1779727832000,-500.0,0.00014,2]
[422995546,1779727832000,-398.2,0.00013782,2]
[422995565,1779727832000,-400.0,0.000141,5]
[422995545,1779727832000,-2316.0,0.0001372,2]
[422995543,1779727832000,-200.0,0.00013699,2]
[422995532,1779727832000,-150.0,0.00013488,2]
[422995573,1779727832000,-600.0,0.000142,5]
[422995554,1779727832000,-500.0,0.00014,2]
[422995571,1779727832000,-478.7,0.00014125,2]
[422995569,1779727832000,-478.7,0.00014123,2]
[422995567,1779727832000,-166.66,0.0001411,2]
[422995557,1779727832000,-1589.0,0.0001404,2]
[422995555,1779727832000,-200.0,0.00014,5]
[422995544,1779727832000,-166.66,0.00013699,2]
[422995537,1779727832000,-892.17,0.00013608,2]
[422995528,1779727832000,-1589.0,0.000134,2]
[422995536,1779727832000,-150.0,0.00013495,2]
[422995559,1779727832000,-1589.0,0.0001404,2]
[422995516,1779727832000,-4852.062308,0.0001304,2]
[422995517,1779727832000,-215.38528485,0.00013106,2]
[422995518,1779727832000,-243.0,0.00013185,2]
[422995519,1779727832000,-480.0,0.00013355,2]
[422995520,1779727832000,-1200.0,0.00013355,2]
[422995527,1779727832000,-1589.0,0.000134,2]
[422995523,1779727832000,-1000.0,0.00013356,2]
[422995524,1779727832000,-150.0,0.00013358,2]
[422995535,1779727832000,-163.49,0.00013488,2]
[422995526,1779727832000,-500.0,0.0001339,2]
[422995521,1779727832000,-500.0,0.00013356,2]
[422995525,1779727832000,-253.75,0.00013373,2]
[422995529,1779727832000,-919.12,0.00013457,2]
[422995530,1779727832000,-1942.43,0.00013473,2]
[422995534,1779727832000,-150.0,0.00013488,2]
[422995540,1779727832000,-500.0,0.00013698,2]
[422995533,1779727832000,-150.0,0.00013488,2]
[422995538,1779727832000,-19844.95,0.00013608,2]
[422995539,1779727832000,-765.55,0.00013612,2]
[422995522,1779727832000,-500.0,0.00013356,2]
[422995575,1779727832000,-150.0,0.00014237,2]
[422995541,1779727832000,-500.0,0.00013698,2]
[422995553,1779727832000,-500.0,0.00014,2]
[422995597,1779727832000,-200.0,0.000146,5]
[422995595,1779727832000,-418.0,0.00014443,2]
[422995602,1779727832000,-200.0,0.000147,5]
[422995609,1779727832000,-200.0,0.000148,5]
[422995603,1779727832000,-500.0,0.00014726,2]
[422995601,1779727832000,-1147.00857509,0.000147,2]
[422995605,1779727832000,-197.72717822,0.000148,2]
[422995612,1779727832000,-336.80736356,0.0001485,2]
[422995611,1779727832000,-433.0,0.00014827,2]
[422995596,1779727832000,-200.0,0.000145,5]
[422995610,1779727832000,-171.18661615,0.00014825,2]
[422995608,1779727832000,-1892.6033,0.000148,2]
[422995606,1779727832000,-5000.0,0.000148,2]
[422995613,1779727832000,-171.18661615,0.0001485,2]
[422995614,1779727832000,-334.0,0.00014865,2]
[422995619,1779727832000,-500.0,0.00014899,2]
[422995618,1779727832000,-500.0,0.00014899,2]
[422995617,1779727832000,-289.0,0.00014886,2]
[422995616,1779727832000,-200.0,0.0001488,2]
[422995561,1779727832000,-163.0,0.0001404,2]
[422995607,1779727832000,-171.18661616,0.000148,2]
[422995599,1779727832000,-166.349,0.0001468,2]
[422995604,1779727832000,-1000.0,0.00014726,2]
[422995593,1779727832000,-519.0,0.00014443,2]
[422995563,1779727832000,-1589.0,0.0001404,2]
[422995576,1779727832000,-166.66,0.00014247,2]
[422995598,1779727832000,-1843.528,0.0001468,2]
[422995579,1779727832000,-2500.0,0.00014288,2]
[422995580,1779727832000,-2500.0,0.00014288,2]
[422995581,1779727832000,-900.0,0.000143,5]
[422995577,1779727832000,-459.82,0.00014249,2]
[422995587,1779727832000,-350.0,0.00014436,2]
[422995586,1779727832000,-2633.098,0.00014404,2]
[422995582,1779727832000,-1589.0,0.0001436,2]
[422995584,1779727832000,-166.66,0.00014384,2]
[422995578,1779727832000,-2500.0,0.00014288,2]
[422995583,1779727832000,-2316.0,0.0001436,2]
[422995588,1779727832000,-150.464,0.00014443,2]
[422995594,1779727832000,-931.0,0.00014443,2]
[422995591,1779727832000,-1271.0,0.00014443,2]
[422995600,1779727832000,-1680.0,0.00014691,2]
[422995592,1779727832000,-1224.0,0.00014443,2]
[422995589,1779727832000,-3547.0,0.00014443,2]
[422995585,1779727832000,-1100.0,0.000144,5]
[422995615,1779727832000,-171.18661615,0.00014875,2]
[422995590,1779727832000,-1355.0,0.00014443,2]
[422995628,1779727833000,-500.0,0.00014899,2]
[422995636,1779727833000,-500.0,0.00014899,2]
[422995632,1779727833000,-500.0,0.00014899,2]
[422995631,1779727833000,-500.0,0.00014899,2]
[422995634,1779727833000,-500.0,0.00014899,2]
[422995630,1779727833000,-500.0,0.00014899,2]
[422995635,1779727833000,-451.32882716,0.00014899,2]
[422995629,1779727833000,-500.0,0.00014899,2]
[422995620,1779727833000,-500.0,0.00014899,2]
[422995627,1779727833000,-500.0,0.00014899,2]
[422995621,1779727833000,-500.0,0.00014899,2]
[422995622,1779727833000,-500.0,0.00014899,2]
[422995625,1779727833000,-500.0,0.00014899,2]
[422995624,1779727833000,-500.0,0.00014899,2]
[422995623,1779727833000,-500.0,0.00014899,2]
[422995633,1779727833000,-500.0,0.00014899,2]
[422995637,1779727833000,-500.0,0.00014899,2]
[422995638,1779727833000,-500.0,0.00014899,2]
[422995626,1779727833000,-500.0,0.00014899,2]
[422995640,1779727833000,-500.0,0.00014899,2]
[422995639,1779727833000,-500.0,0.00014899,2]
[422995651,1779727833000,-217.0,0.000149,5]
[422995653,1779727833000,-150.0,0.000149,2]
[422995652,1779727833000,-413.0,0.000149,5]
[422995656,1779727833000,-377.685,0.000149,2]
[422995657,1779727833000,-1104.50000001,0.000149,2]
[422995655,1779727833000,-66955.29628391,0.000149,2]
[422995648,1779727833000,-255.541025,0.00014899,2]
[422995654,1779727833000,-2000.0,0.000149,2]
[422995649,1779727833000,-500.0,0.00014899,2]
[422995647,1779727833000,-500.0,0.00014899,2]
[422995646,1779727833000,-554.70072361,0.00014899,2]
[422995644,1779727833000,-163.2532492,0.00014899,2]
[422995642,1779727833000,-315.48036194,0.00014899,2]
[422995643,1779727833000,-500.0,0.00014899,2]
[422995645,1779727833000,-166.24962822,0.00014899,2]
[422995641,1779727833000,-167.23276065,0.00014899,2]
[422995650,1779727833000,-500.0,0.00014899,2]
[422995663,1779727838000,-38855.49999999,0.000149,2]
[422995661,1779727838000,-764.67238339,0.000147,2]
[422995662,1779727838000,-2589.62815826,0.000149,2]
[422995720,1779727840000,-522.9232407,0.000149,2]
[422995723,1779727840000,-389.2173698,0.000149,2]
[422995725,1779727840000,-2161.0222183,0.000149,2]
[422995724,1779727840000,-3385.48952984,0.000149,2]
[422995722,1779727840000,-358.72294295,0.000149,2]
[422995728,1779727841000,-1696.34022885,0.000149,2]
[422995727,1779727841000,-509.78158893,0.000147,2]
[422995744,1779727844000,-102547.19809306,0.000149,2]
[422995742,1779727844000,-801.60120138,0.000147,2]
[422995743,1779727844000,-48.03478017,0.000147,2]
[422995761,1779727846000,-12890.82135325,0.000149,2]
[422995759,1779727846000,-500.0,0.00014,2]
[422995762,1779727846000,-1741.30319175,0.000149,2]
[422995760,1779727846000,-6061.0,0.00014443,2]
[422995764,1779727847000,-20514.75968674,0.000149,2]
[422995763,1779727847000,-500.0,0.00014,2]
[422995771,1779727868000,214.0,7.945e-05,2]
[422995772,1779727892000,161.8,6.952e-05,2]
[422995781,1779728143000,195.43775586,0.00011,7]
[422995782,1779728203000,201.3601121,0.00011,7]
[422995787,1779728455000,150.0,0.00010015,2]
[422995792,1779728653000,168.74,5.963e-05,2]
[422995794,1779728653000,168.74,9.938e-05,2]
[422995793,1779728653000,168.74,7.951e-05,2]
[422995795,1779728940000,1000.0,0.00028077,120]
[422995841,1779729033000,-166.66,0.00011891,2]
[422995811,1779729033000,-300.0,0.00011144,2]
[422995817,1779729033000,-300.0,0.0001117,2]
[422995820,1779729033000,-14062.0,0.0001118,2]
[422995826,1779729033000,-193.0,0.00011357,2]
[422995828,1779729033000,-250.0,0.00011357,2]
[422995819,1779729033000,-7047.57942554,0.00011171,2]
[422995823,1779729033000,-18643.0,0.00011203,2]
[422995821,1779729033000,-12146.0,0.00011194,2]
[422995812,1779729033000,-211.87315052,0.00011145,2]
[422995822,1779729033000,-150.0,0.00011202,2]
[422995824,1779729033000,-16901.0,0.00011225,2]
[422995825,1779729033000,-1543.5807737,0.00011299,2]
[422995818,1779729033000,-1991.42057446,0.00011171,2]
[422995835,1779729033000,-200.0,0.00011788,2]
[422995839,1779729033000,-490.85,0.00011841,2]
[422995829,1779729033000,-300.0,0.00011357,2]
[422995827,1779729033000,-500.0,0.00011357,2]
[422995809,1779729033000,-317.76256801,0.00011,2]
[422995810,1779729033000,-152.0,0.00011002,7]
[422995838,1779729033000,-207.99,0.00011826,2]
[422995797,1779729033000,-194.90338216,0.00010324,2]
[422995798,1779729033000,-501.0241842,0.00010337,2]
[422995801,1779729033000,-193.0,0.00010349,2]